fUSD/lending_fUSD_20260324
["ID","MTS","AMOUNT","RATE_DAILY","PERIOD"]
[408846993,1774338802526,-725.53,0.00044383,120]
[408846994,1774338802543,-500.0,0.00044383,120]
[408846995,1774338802563,-1014.92,0.00044383,120]
[408846996,1774338802581,-2689.33,0.00044383,120]
[408846997,1774338802591,-500.0,0.00044383,120]
[408846998,1774338802600,-500.0,0.00044383,120]
[408846999,1774338802609,-500.0,0.00044383,120]
[408847000,1774338802619,-1544.85,0.00044383,120]
[408847001,1774338802628,-500.0,0.00044383,120]
[408847002,1774338802638,-500.0,0.00044383,120]
[408847003,1774338802648,-500.0,0.00044383,120]
[408847004,1774338802657,-1269.14,0.00044383,120]
[408847005,1774338802667,-500.0,0.00044383,120]
[408847006,1774338802676,-500.0,0.00044383,120]
[408847007,1774338802685,-665.15,0.00044383,120]
[408847008,1774338802695,-680.42,0.00044383,120]
[408847009,1774338802704,-500.0,0.00044383,120]
[408847010,1774338802713,-191.50666415,0.00044383,120]
[408847011,1774338802723,-500.0,0.00044383,120]
[408847012,1774338802733,-500.0,0.00044383,120]
[408847013,1774338802742,-500.0,0.00044383,120]
[408847014,1774338802751,-1769.26,0.00044383,120]
[408847015,1774338802760,-512.42,0.00044383,120]
[408847016,1774338802770,-182.74029727,0.00044383,120]
[408847017,1774338802780,-296.88575211,0.00044383,120]
[408847018,1774338802789,-500.0,0.00044383,120]
[408847019,1774338802798,-500.0,0.00044383,120]
[408847020,1774338802808,-500.0,0.00044383,120]
[408847021,1774338802817,-1705.77,0.00044383,120]
[408847022,1774338802827,-500.0,0.00044383,120]
[408847023,1774338802836,-978.43,0.00044383,120]
[408847024,1774338802846,-500.0,0.00044383,120]
[408847025,1774338802855,-500.0,0.00044383,120]
[408847026,1774338802866,-500.0,0.00044383,120]
[408847027,1774338802876,-500.0,0.00044383,120]
[408847028,1774338802885,-500.0,0.00044383,120]
[408847029,1774338802895,-1215.44,0.00044383,120]
[408847030,1774338802904,-500.0,0.00044383,120]
[408847031,1774338802914,-1046.27,0.00044383,120]
[408847032,1774338802925,-500.0,0.00044383,120]
[408847033,1774338802935,-500.0,0.00044383,120]
[408847034,1774338802946,-1613.72,0.00044383,120]
[408847035,1774338802956,-1897.96,0.00044383,120]
[408847036,1774338802966,-770.58,0.00044383,120]
[408847037,1774338802975,-1960.33,0.00044383,120]
[408847038,1774338802984,-3056.27,0.00044383,120]
[408847039,1774338802994,-500.0,0.00044383,120]
[408847040,1774338803003,-1228.99,0.00044383,120]
[408847041,1774338803012,-680.28,0.00044383,120]
[408847042,1774338803022,-769.44,0.00044383,120]
[408847043,1774338803031,-500.0,0.00044383,120]
[408847044,1774338803040,-500.0,0.00044383,120]
[408847045,1774338803050,-500.0,0.00044383,120]
[408847046,1774338803059,-855.78,0.00044383,120]
[408847047,1774338803069,-500.0,0.00044383,120]
[408847048,1774338803079,-1078.9,0.00044383,120]
[408847049,1774338803089,-1780.32,0.00044383,120]
[408847050,1774338803099,-1099.3,0.00044383,120]
[408847051,1774338803109,-699.82,0.00044383,120]
[408847052,1774338803120,-759.17,0.00044383,120]
[408847053,1774338803130,-225.17800984,0.00044383,120]
[408847054,1774338803140,-500.0,0.00044383,120]
[408847055,1774338803150,-931.09,0.00044383,120]
[408847056,1774338803160,-815.17,0.00044383,120]
[408847057,1774338803171,-656.8,0.00044383,120]
[408847058,1774338803180,-351.65597227,0.00044383,120]
[408847059,1774338803190,-500.0,0.00044383,120]
[408847060,1774338803199,-500.0,0.00044383,120]
[408847061,1774338803208,-500.0,0.00044383,120]
[408847062,1774338803218,-614.51,0.00044383,120]
[408847063,1774338803227,-671.25,0.00044383,120]
[408847064,1774338803236,-1323.85,0.00044383,7]
[408847065,1774338803245,-500.0,0.00044383,14]
[408847066,1774338803255,-500.0,0.00044383,120]
[408847067,1774338803264,-984.57,0.00044383,120]
[408847068,1774338803273,-500.0,0.00044383,120]
[408847069,1774338803282,-500.0,0.00044383,120]
[408847070,1774338803291,-729.45,0.00044383,120]
[408847071,1774338803300,-483.19257379,0.00044383,120]
[408847072,1774338803309,-926.4,0.00044383,120]
[408847073,1774338803319,-1291.11,0.00044383,120]
[408847074,1774338803329,-560.4,0.00044383,120]
[408847075,1774338803338,-617.21,0.00044383,120]
[408847076,1774338803347,-1726.06,0.00044383,120]
[408847077,1774338803356,-500.0,0.00044383,120]
[408847078,1774338803366,-229.33488043,0.00044383,120]
[408847079,1774338803375,-500.0,0.00044383,120]
[408847080,1774338803384,-1356.13,0.00044383,120]
[408847081,1774338803394,-801.87,0.00044383,120]
[408847082,1774338803406,-500.0,0.00044383,120]
[408847083,1774338803416,-821.12,0.00044383,120]
[408847084,1774338803426,-2922.62,0.00044383,60]
[408847085,1774338803435,-500.0,0.00044383,120]
[408847086,1774338803446,-866.85,0.00044383,120]
[408847087,1774338803456,-459.94330345,0.00044383,120]
[408847088,1774338803466,-500.0,0.00044383,120]
[408847089,1774338803476,-500.0,0.00044383,120]
[408847090,1774338803486,-2859.83,0.00044383,120]
[408847091,1774338803495,-665.38,0.00044383,120]
[408847092,1774338803505,-644.49,0.00044383,120]
[408847093,1774338803515,-4166.66,0.00044383,120]
[408847094,1774338803524,-719.59,0.00044383,120]
[408847095,1774338803533,-679.57,0.00044383,120]
[408847096,1774338803542,-634.38270322,0.00044383,120]
[408847097,1774338803551,-599.93,0.00044383,120]
[408847098,1774338803560,-500.0,0.00044383,120]
[408847099,1774338803569,-1432.07,0.00044383,120]
[408847100,1774338803578,-730.01,0.00044383,120]
[408847101,1774338803588,-508.87,0.00044383,120]
[408847102,1774338803597,-883.47,0.00044383,120]
[408847103,1774338803607,-589.62542567,0.00044383,120]
[408847104,1774338803616,-279.30642208,0.00044383,120]
[408847105,1774338803626,-500.0,0.00044383,120]
[408847106,1774338803635,-500.0,0.00044383,120]
[408847107,1774338803644,-759.73,0.00044383,120]
[408847108,1774338803654,-1171.93,0.00044383,120]
[408847109,1774338803663,-892.78,0.00044383,120]
[408847110,1774338803672,-749.74,0.00044383,120]
[408847111,1774338803682,-978.13,0.00044383,120]
[408847112,1774338803691,-674.49,0.00044383,120]
[408847113,1774338803700,-1973.42,0.00044383,120]
[408847114,1774338803710,-1355.12,0.00044383,120]
[408847115,1774338803720,-1044.01,0.00044383,120]
[408847116,1774338803729,-500.0,0.00044383,120]
[408847117,1774338803739,-786.73,0.00044383,120]
[408847118,1774338803748,-500.0,0.00044383,120]
[408847119,1774338803757,-500.0,0.00044383,120]
[408847120,1774338803767,-1476.03,0.00044383,120]
[408847121,1774338803776,-580.53107913,0.00044383,120]
[408847122,1774338803786,-647.98,0.00044383,120]
[408847123,1774338803795,-500.0,0.00044383,120]
[408847124,1774338803805,-947.33,0.00044383,120]
[408847125,1774338803814,-590.04,0.00044383,120]
[408847126,1774338803823,-924.76,0.00044383,120]
[408847127,1774338803832,-500.0,0.00044383,120]
[408847128,1774338803841,-1633.92,0.00044383,120]
[408847129,1774338803850,-1295.04,0.00044383,120]
[408847130,1774338803859,-1441.35,0.00044383,60]
[408847131,1774338803868,-588.11,0.00044383,120]
[408847132,1774338803877,-1951.73,0.00044383,120]
[408847133,1774338803886,-500.0,0.00044383,120]
[408847134,1774338803895,-2782.79,0.00044383,120]
[408847135,1774338803905,-605.44,0.00044383,120]
[408847136,1774338803914,-894.69,0.00044383,120]
[408847137,1774338803923,-500.0,0.00044383,120]
[408847138,1774338803932,-525.27,0.00044383,120]
[408847139,1774338803944,-500.0,0.00044383,120]
[408847140,1774338803953,-1730.58,0.00044383,120]
[408847141,1774338803962,-517.76,0.00044383,120]
[408847142,1774338803971,-500.0,0.00044383,120]
[408847143,1774338803980,-500.0,0.00044383,120]
[408847144,1774338803990,-500.0,0.00044383,120]
[408847145,1774338803999,-1269.84,0.00044383,120]
[408847146,1774338804008,-1536.15,0.00044383,120]
[408847147,1774338804018,-1493.36,0.00044383,120]
[408847148,1774338804027,-500.0,0.00044383,120]
[408847149,1774338804036,-632.12,0.00044383,120]
[408847150,1774338804045,-600.11,0.00044383,120]
[408847151,1774338804055,-1551.97,0.00044383,120]
[408847152,1774338804064,-724.43,0.00044383,120]
[408847153,1774338804074,-2431.7,0.00044383,120]
[408847154,1774338804083,-1747.14,0.00044383,120]
[408847155,1774338804091,-1632.69,0.00044383,120]
[408847156,1774338804102,-1186.56,0.00044383,120]
[408847157,1774338804113,-500.0,0.00044383,120]
[408847158,1774338804123,-1598.01,0.00044383,120]
[408847159,1774338804133,-500.0,0.00044383,120]
[408847160,1774338804142,-517.15,0.00044383,120]
[408847161,1774338804151,-496.63902211,0.00044383,120]
[408847162,1774338804160,-1075.02,0.00044383,120]
[408847163,1774338804169,-500.0,0.00044383,120]
[408847164,1774338804179,-500.0,0.00044383,120]
[408847165,1774338804188,-1616.03,0.00044383,120]
[408847166,1774338804197,-161.66579,0.00044383,120]
[408847167,1774338804206,-1428.85,0.00044383,120]
[408847168,1774338804216,-500.0,0.00044383,120]
[408847169,1774338804225,-500.0,0.00044383,120]
[408847170,1774338804235,-665.63,0.00044383,120]
[408847171,1774338804244,-866.03,0.00044383,120]
[408847172,1774338804253,-1926.05,0.00044383,120]
[408847173,1774338804262,-2687.41,0.00044383,120]
[408847174,1774338804271,-728.07,0.00044383,120]
[408847175,1774338804281,-638.16,0.00044383,120]
[408847176,1774338804291,-500.0,0.00044383,120]
[408847177,1774338804301,-604.38,0.00044383,120]
[408847178,1774338804310,-1493.48,0.00044383,30]
[408847179,1774338804320,-801.43,0.00044383,120]
[408847180,1774338804330,-752.4,0.00044383,120]
[408847181,1774338804339,-552.47,0.00044383,120]
[408847182,1774338804349,-500.0,0.00044383,120]
[408847183,1774338804358,-995.77,0.00044383,120]
[408847184,1774338804367,-500.0,0.00044383,120]
[408847185,1774338804375,-878.89,0.00044383,120]
[408847186,1774338804384,-2173.76,0.00044383,120]
[408847187,1774338804393,-1298.61,0.00044383,120]
[408847188,1774338804406,-1791.61,0.00044383,120]
[408847189,1774338804415,-500.0,0.00044383,120]
[408847190,1774338804425,-1260.51,0.00044383,120]
[408847191,1774338804434,-663.27,0.00044383,120]
[408847192,1774338804576,-500.0,0.00044383,120]
[408847193,1774338804587,-1454.94,0.00044383,120]
[408847194,1774338804596,-500.0,0.00044383,120]
[408847195,1774338804606,-1601.87,0.00044383,120]
[408847196,1774338804616,-1108.88,0.00044383,120]
[408847197,1774338804625,-1258.26,0.00044383,120]
[408847198,1774338804634,-500.0,0.00044383,120]
[408847199,1774338804644,-500.0,0.00044383,120]
[408847200,1774338804653,-631.57,0.00044383,120]
[408847201,1774338804663,-1791.18,0.00044383,120]
[408847202,1774338804672,-500.0,0.00044383,120]
[408847203,1774338804682,-514.08,0.00044383,120]
[408847204,1774338804692,-585.76,0.00044383,120]
[408847205,1774338804702,-1447.52,0.00044383,120]
[408847206,1774338804712,-634.53,0.00044383,120]
[408847207,1774338804722,-500.0,0.00044383,120]
[408847208,1774338804732,-500.0,0.00044383,120]
[408847209,1774338804742,-500.0,0.00044383,120]
[408847210,1774338804752,-500.0,0.00044383,120]
[408847211,1774338804761,-514.43,0.00044383,120]
[408847212,1774338804770,-500.0,0.00044383,120]
[408847213,1774338804779,-1530.3,0.00044383,120]
[408847214,1774338804788,-1437.77,0.00044383,120]
[408847215,1774338804798,-735.64,0.00044383,120]
[408847216,1774338804807,-500.0,0.00044383,120]
[408847217,1774338804816,-798.73,0.00044383,120]
[408847218,1774338804825,-500.0,0.00044383,120]
[408847219,1774338804835,-500.0,0.00044383,120]
[408847220,1774338804844,-2864.08,0.00044383,120]
[408847221,1774338804854,-534.31,0.00044383,120]
[408847222,1774338804864,-500.0,0.00044383,120]
[408847223,1774338804873,-157.35892236,0.00044383,120]
[408847224,1774338804893,-800.61,0.00044383,120]
[408847225,1774338804903,-500.0,0.00044383,120]
[408847226,1774338804913,-500.0,0.00044383,120]
[408847227,1774338804922,-1519.14,0.00044383,120]
[408847228,1774338804931,-500.0,0.00044383,120]
[408847229,1774338804941,-579.61,0.00044383,120]
[408847230,1774338804951,-971.22,0.00044383,120]
[408847231,1774338804960,-500.0,0.00044383,120]
[408847232,1774338804969,-2175.73,0.00044383,120]
[408847233,1774338804979,-1404.43,0.00044383,120]
[408847234,1774338804988,-651.63,0.00044383,120]
[408847235,1774338804997,-500.0,0.00044383,120]
[408847236,1774338805007,-769.19,0.00044383,120]
[408847237,1774338805016,-666.77,0.00044383,120]
[408847238,1774338805025,-1046.52,0.00044383,120]
[408847239,1774338805035,-523.17148407,0.00044383,120]
[408847240,1774338805044,-500.0,0.00044383,120]
[408847241,1774338805054,-547.19,0.00044383,120]
[408847242,1774338805063,-613.47,0.00044383,120]
[408847243,1774338805072,-500.0,0.00044383,120]
[408847244,1774338805081,-664.14,0.00044383,120]
[408847245,1774338805091,-500.55,0.00044383,120]
[408847246,1774338805101,-1409.42,0.00044383,120]
[408847247,1774338805110,-500.0,0.00044383,120]
[408847248,1774338805119,-1958.04,0.00044383,120]
[408847249,1774338805128,-500.0,0.00044383,120]
[408847250,1774338805138,-845.98,0.00044383,120]
[408847251,1774338805148,-788.97,0.00044383,120]
[408847252,1774338805161,-979.08,0.00044383,120]
[408847253,1774338805172,-2271.51,0.00044383,120]
[408847254,1774338805183,-798.9,0.00044383,120]
[408847255,1774338805193,-328.20252073,0.00044383,120]
[408847256,1774338805203,-785.73,0.00044383,120]
[408847257,1774338805212,-1319.48,0.00044383,120]
[408847258,1774338805221,-898.9,0.00044383,120]
[408847259,1774338805231,-1026.81,0.00044383,120]
[408847260,1774338805241,-896.49,0.00044383,2]
[408847261,1774338805251,-591.09,0.00044383,120]
[408847262,1774338805261,-1571.69,0.00044383,120]
[408847263,1774338805273,-951.54,0.00044383,120]
[408847264,1774338805283,-500.0,0.00044383,120]
[408847265,1774338805293,-1576.67,0.00044383,120]
[408847266,1774338805302,-500.0,0.00044383,120]
[408847267,1774338805311,-533.43,0.00044383,120]
[408847268,1774338805320,-1797.77,0.00044383,120]
[408847269,1774338805330,-641.68,0.00044383,30]
[408847270,1774338805339,-908.05,0.00044383,120]
[408847271,1774338805349,-978.03,0.00044383,120]
[408847272,1774338805358,-500.0,0.00044383,120]
[408847273,1774338805367,-500.0,0.00044383,120]
[408847274,1774338805377,-500.0,0.00044383,120]
[408847275,1774338805387,-1254.4,0.00044383,120]
[408847276,1774338805397,-500.0,0.00044383,120]
[408847277,1774338805410,-890.53,0.00044383,120]
[408847278,1774338805419,-794.03,0.00044383,120]
[408847279,1774338805428,-500.0,0.00044383,120]
[408847280,1774338805438,-588.33,0.00044383,120]
[408847281,1774338805450,-642.99,0.00044383,120]
[408847282,1774338805459,-954.83,0.00044383,120]
[408847283,1774338805469,-2073.54,0.00044383,120]
[408847284,1774338805480,-945.89,0.00044383,120]
[408847285,1774338805490,-2204.1,0.00044383,120]
[408847286,1774338805500,-500.0,0.00044383,120]
[408847287,1774338805509,-610.5,0.00044383,120]
[408847288,1774338805519,-1685.9,0.00044383,120]
[408847289,1774338805529,-500.0,0.00044383,120]
[408847290,1774338805539,-2030.17,0.00044383,30]
[408847291,1774338805548,-2121.36,0.00044383,120]
[408847292,1774338805558,-2554.76,0.00044383,120]
[408847293,1774338805567,-659.65,0.00044383,120]
[408847294,1774338805577,-976.45,0.00044383,120]
[408847295,1774338805587,-534.01,0.00044383,120]
[408847296,1774338805598,-1990.0,0.00044383,120]
[408847297,1774338805608,-500.0,0.00044383,30]
[408847298,1774338805618,-1204.77,0.00044383,120]
[408847299,1774338805628,-1000.85,0.00044383,120]
[408847300,1774338805639,-618.78,0.00044383,120]
[408847301,1774338805649,-1087.07,0.00044383,120]
[408847302,1774338805659,-500.0,0.00044383,120]
[408847303,1774338805668,-758.91,0.00044383,120]
[408847304,1774338805678,-861.35,0.00044383,120]
[408847305,1774338805689,-639.53,0.00044383,120]
[408847306,1774338805701,-964.47,0.00044383,120]
[408847307,1774338805711,-1790.64,0.00044383,120]
[408847308,1774338805720,-1377.48,0.00044383,120]
[408847309,1774338805730,-817.12,0.00044383,120]
[408847310,1774338805740,-500.0,0.00044383,120]
[408847311,1774338805750,-1048.96,0.00044383,120]
[408847312,1774338805760,-500.0,0.00044383,120]
[408847313,1774338805771,-617.31,0.00044383,120]
[408847314,1774338805780,-1373.09,0.00044383,120]
[408847315,1774338805790,-950.57,0.00044383,120]
[408847316,1774338805799,-500.0,0.00044383,120]
[408847317,1774338805807,-1252.8,0.00044383,120]
[408847318,1774338805816,-500.0,0.00044383,2]
[408847319,1774338805825,-500.0,0.00044383,120]
[408847320,1774338805834,-3697.72,0.00044383,2]
[408847321,1774338805843,-500.0,0.00044383,120]
[408847322,1774338805852,-1527.96,0.00044383,120]
[408847323,1774338805862,-589.22,0.00044383,120]
[408847324,1774338805871,-658.92,0.00044383,120]
[408847325,1774338805880,-541.68,0.00044383,120]
[408847326,1774338805890,-1047.63,0.00044383,120]
[408847327,1774338805899,-641.73,0.00044383,120]
[408847328,1774338805909,-570.14,0.00044383,120]
[408847329,1774338805918,-500.0,0.00044383,120]
[408847330,1774338805927,-516.11,0.00044383,120]
[408847331,1774338805937,-1329.81,0.00044383,120]
[408847332,1774338805947,-2000.22,0.00044383,120]
[408847333,1774338805956,-1988.85,0.00044383,120]
[408847334,1774338805965,-500.0,0.00044383,120]
[408847335,1774338805975,-364.31708014,0.00044383,120]
[408847336,1774338805984,-2821.24,0.00044383,120]
[408847337,1774338805993,-627.92,0.00044383,120]
[408847338,1774338806002,-500.0,0.00044383,90]
[408847339,1774338806012,-819.97,0.00044383,120]
[408847340,1774338806021,-500.0,0.00044383,120]
[408847341,1774338806031,-1024.12,0.00044383,120]
[408847342,1774338806040,-500.0,0.00044383,120]
[408847343,1774338806050,-1947.88,0.00044383,120]
[408847344,1774338806061,-500.0,0.00044383,120]
[408847345,1774338806070,-659.88,0.00044383,120]
[408847346,1774338806079,-810.31,0.00044383,120]
[408847347,1774338806088,-1590.35,0.00044383,120]
[408847348,1774338806098,-688.15,0.00044383,120]
[408847349,1774338806107,-500.0,0.00044383,120]
[408847350,1774338806116,-4167.56,0.00044383,14]
[408847351,1774338806125,-515.79,0.00044383,120]
[408847352,1774338806134,-787.69,0.00044383,120]
[408847353,1774338806143,-698.8,0.00044383,120]
[408847354,1774338806154,-653.93,0.00044383,120]
[408847355,1774338806164,-866.06,0.00044383,120]
[408847356,1774338806173,-2147.96,0.00044383,120]
[408847357,1774338806183,-936.69,0.00044383,120]
[408847358,1774338806194,-500.0,0.00044383,120]
[408847359,1774338806204,-898.82,0.00044383,120]
[408847360,1774338806213,-627.57,0.00044383,120]
[408847361,1774338806223,-1680.93,0.00044383,120]
[408847362,1774338806232,-500.0,0.00044383,120]
[408847363,1774338806241,-516.86,0.00044383,120]
[408847364,1774338806251,-1731.35,0.00044383,120]
[408847365,1774338806261,-1894.96,0.00044383,120]
[408847366,1774338806271,-570.78,0.00044383,120]
[408847367,1774338806280,-833.21,0.00044383,120]
[408847368,1774338806289,-500.0,0.00044383,120]
[408847369,1774338806298,-329.46376696,0.00044383,120]
[408847370,1774338806307,-678.17,0.00044383,120]
[408847371,1774338806317,-500.0,0.00044383,120]
[408847372,1774338806326,-1154.53,0.00044383,120]
[408847373,1774338806335,-532.48,0.00044383,120]
[408847374,1774338806345,-1168.04,0.00044383,120]
[408847375,1774338806355,-500.0,0.00044383,120]
[408847376,1774338806364,-1084.15,0.00044383,120]
[408847377,1774338806373,-500.0,0.00044383,120]
[408847378,1774338806382,-1543.41,0.00044383,120]
[408847379,1774338806391,-1735.5,0.00044383,120]
[408847380,1774338806404,-524.04,0.00044383,120]
[408847381,1774338806414,-528.45,0.00044383,120]
[408847382,1774338806423,-507.54,0.00044383,60]
[408847383,1774338806432,-500.0,0.00044383,120]
[408847384,1774338806443,-500.0,0.00044383,120]
[408847385,1774338806453,-1522.45,0.00044383,120]
[408847386,1774338806463,-352.37269254,0.00044383,120]
[408847387,1774338806472,-1728.67,0.00044383,120]
[408847388,1774338806481,-1193.94,0.00044383,120]
[408847389,1774338806491,-2483.59,0.00044383,120]
[408847390,1774338806500,-1145.4,0.00044383,120]
[408847391,1774338806509,-500.0,0.00044383,120]
[408847392,1774338806518,-785.33,0.00044383,120]
[408847393,1774338806527,-269.9,0.00044383,120]
[408847394,1774338806536,-802.88,0.00044383,120]
[408847395,1774338806546,-773.31,0.00044383,120]
[408847396,1774338806555,-504.31,0.00044383,120]
[408847397,1774338806565,-1766.83,0.00044383,120]
[408847398,1774338806574,-766.14,0.00044383,120]
[408847399,1774338806584,-655.33,0.00044383,120]
[408847400,1774338806593,-500.0,0.00044383,120]
[408847401,1774338806603,-8117.29,0.00044383,120]
[408847402,1774338806612,-1429.82,0.00044383,120]
[408847403,1774338806621,-500.0,0.00044383,120]
[408847404,1774338806630,-500.0,0.00044383,120]
[408847405,1774338806640,-1503.53,0.00044383,120]
[408847406,1774338806650,-1630.29,0.00044383,120]
[408847407,1774338806660,-841.35,0.00044383,120]
[408847408,1774338806669,-673.28,0.00044383,120]
[408847409,1774338806680,-1387.91,0.00044383,120]
[408847410,1774338806690,-500.0,0.00044383,7]
[408847411,1774338807060,-500.0,0.00044383,120]
[408847412,1774338807071,-604.72,0.00044383,120]
[408847413,1774338807081,-1280.15,0.00044383,120]
[408847414,1774338807091,-680.83,0.00044383,120]
[408847415,1774338807102,-1687.32,0.00044383,120]
[408847416,1774338807112,-553.79,0.00044383,120]
[408847417,1774338807123,-500.0,0.00044383,120]
[408847418,1774338807133,-500.0,0.00044383,120]
[408847419,1774338807143,-583.19,0.00044383,120]
[408847420,1774338807152,-500.0,0.00044383,120]
[408847421,1774338807162,-500.0,0.00044383,120]
[408847422,1774338807173,-765.82,0.00044383,120]
[408847423,1774338807183,-500.0,0.00044383,120]
[408847424,1774338807194,-500.0,0.00044383,120]
[408847425,1774338807205,-2264.25,0.00044383,120]
[408847426,1774338807215,-1037.3,0.00044383,30]
[408847427,1774338807225,-1021.05,0.00044383,120]
[408847428,1774338807235,-2339.0,0.00044383,120]
[408847429,1774338807245,-602.59,0.00044383,120]
[408847430,1774338807255,-1084.43,0.00044383,120]
[408847431,1774338807265,-253.03635945,0.00044383,120]
[408847432,1774338807276,-1040.73,0.00044383,120]
[408847433,1774338807286,-500.0,0.00044383,120]
[408847434,1774338807296,-851.46,0.00044383,120]
[408847435,1774338807306,-1082.75,0.00044383,120]
[408847436,1774338807315,-1633.66,0.00044383,120]
[408847437,1774338807325,-4460.36,0.00044383,120]
[408847438,1774338807336,-1090.06,0.00044383,120]
[408847439,1774338807347,-1298.83,0.00044383,120]
[408847440,1774338807356,-545.35,0.00044383,120]
[408847441,1774338807367,-1399.28,0.00044383,120]
[408847442,1774338807376,-911.41,0.00044383,120]
[408847443,1774338807387,-4326.06,0.00044383,120]
[408847444,1774338807397,-637.83,0.00044383,120]
[408847445,1774338807410,-863.52,0.00044383,60]
[408847446,1774338807420,-521.47,0.00044383,120]
[408847447,1774338807429,-500.0,0.00044383,120]
[408847448,1774338807438,-500.0,0.00044383,14]
[408847449,1774338807451,-500.0,0.00044383,120]
[408847450,1774338807461,-1041.22,0.00044383,120]
[408847451,1774338807472,-500.0,0.00044383,120]
[408847452,1774338807482,-711.52,0.00044383,120]
[408847453,1774338807493,-2031.81,0.00044383,120]
[408847454,1774338807504,-790.74,0.00044383,120]
[408847455,1774338807514,-1067.59,0.00044383,120]
[408847456,1774338807524,-500.0,0.00044383,120]
[408847457,1774338807534,-261.13802835,0.00044383,120]
[408847458,1774338807544,-1154.84,0.00044383,120]
[408847459,1774338807555,-1104.3,0.00044383,120]
[408847460,1774338807567,-295.79444146,0.00044383,120]
[408847461,1774338807577,-2348.54,0.00044383,120]
[408847462,1774338807588,-500.0,0.00044383,120]
[408847463,1774338807598,-1560.13,0.00044383,120]
[408847464,1774338807608,-541.43,0.00044383,120]
[408847465,1774338807618,-500.0,0.00044383,120]
[408847466,1774338807628,-500.0,0.00044383,120]
[408847467,1774338807638,-535.0,0.00044383,120]
[408847468,1774338807649,-858.21,0.00044383,120]
[408847469,1774338807659,-500.0,0.00044383,120]
[408847470,1774338807670,-500.0,0.00044383,120]
[408847471,1774338807680,-1539.96,0.00044383,120]
[408847472,1774338807690,-1021.53,0.00044383,120]
[408847473,1774338807701,-592.83,0.00044383,120]
[408847474,1774338807711,-519.74,0.00044383,120]
[408847475,1774338807721,-500.0,0.00044383,120]
[408847476,1774338807732,-813.09,0.00044383,120]
[408847477,1774338807743,-1598.49,0.00044383,120]
[408847478,1774338807753,-2149.78,0.00044383,120]
[408847479,1774338807764,-513.33,0.00044383,120]
[408847480,1774338807774,-833.01,0.00044383,120]
[408847481,1774338807783,-609.49162331,0.00044383,120]
[408847482,1774338807793,-656.49,0.00044383,120]
[408847483,1774338807804,-700.59,0.00044383,120]
[408847484,1774338807814,-500.0,0.00044383,120]
[408847485,1774338807824,-728.42,0.00044383,120]
[408847486,1774338807834,-500.0,0.00044383,120]
[408847487,1774338807844,-500.0,0.00044383,120]
[408847488,1774338807854,-851.0,0.00044384,120]
[408847489,1774338807865,-734590.94518289,0.000444,120]
[408847490,1774338807875,-7370.3475347,0.0004449,10]
[408847491,1774338807885,-2804.0,0.00044494,16]
[408847492,1774338807895,-12282.57,0.000445,120]